fUSD/lending_fUSD_20260116
["ID","MTS","AMOUNT","RATE_DAILY","PERIOD"]
[402162990,1768553778838,-5211.13833737,0.00041917,10]
[402162991,1768553778848,-1682.16156144,0.00041917,10]
[402162992,1768553778858,-729.3566389,0.00041917,10]
[402162993,1768553778867,-1064.51122523,0.00041917,10]
[402162994,1768553778877,-5144.10172459,0.00041917,10]
[402162995,1768553778886,-521.4910152,0.00041917,10]
[402162996,1768553778896,-532.47665389,0.00041917,10]
[402162997,1768553778907,-1001.01296744,0.00041917,10]
[402162998,1768553778918,-2351.36159961,0.00041917,10]
[402162999,1768553778928,-672.48382645,0.00041917,10]
[402163000,1768553778938,-642.92509603,0.00041917,10]
[402163001,1768553778947,-1048.42490159,0.00041917,10]
[402163002,1768553778956,-679.99068745,0.00041917,10]
[402163003,1768553778966,-2045.04048117,0.00041917,10]
[402163004,1768553778975,-735.61349189,0.00041917,10]
[402163005,1768553778984,-804.6701873,0.00041917,10]
[402163006,1768553778994,-793.75704256,0.00041917,10]
[402163007,1768553779003,-1159.28647435,0.00041917,10]
[402163008,1768553779012,-2221.25421268,0.00041917,10]
[402163009,1768553779021,-580.93755775,0.00041917,10]
[402163010,1768553779030,-941.51870679,0.00041917,10]
[402163011,1768553779039,-599.97392002,0.00041917,10]
[402163012,1768553779048,-678.02190756,0.00041917,10]
[402163013,1768553779057,-1202.55524976,0.00041917,10]
[402163014,1768553779066,-1781.19026147,0.00041917,120]
[402163015,1768553779075,-2033.32116963,0.00041917,10]
[402163016,1768553779084,-2114.42856935,0.00041917,10]
[402163017,1768553779094,-1524.32995006,0.00041917,10]
[402163018,1768553779103,-953.65666748,0.00041917,10]
[402163019,1768553779113,-556.54058077,0.00041917,10]
[402163020,1768553779123,-1014.04685201,0.00041917,10]
[402163021,1768553779132,-1302.37452148,0.00041917,10]
[402163022,1768553779142,-593.76092614,0.00041917,10]
[402163023,1768553779151,-859.26415074,0.00041917,10]
[402163024,1768553779161,-624.02237646,0.00041917,10]
[402163025,1768553779171,-1282.44229446,0.00041917,10]
[402163026,1768553779180,-606.52989235,0.00041917,10]
[402163027,1768553779190,-1084.92196283,0.00041917,10]
[402163028,1768553779199,-781.57455469,0.00041917,10]
[402163029,1768553779208,-616.24057973,0.00041917,10]
[402163030,1768553779217,-907.74152075,0.00041917,10]
[402163031,1768553779226,-732.05952818,0.00041917,10]
[402163032,1768553779236,-849.44156209,0.00041917,10]
[402163033,1768553779245,-1477.24686201,0.00041917,10]
[402163034,1768553779255,-643.41527473,0.00041917,10]
[402163035,1768553779264,-823.33501439,0.00041917,10]
[402163036,1768553779274,-802.85074087,0.00041917,10]
[402163037,1768553779284,-725.21522935,0.00041917,10]
[402163038,1768553779294,-1029.59002141,0.00041917,10]
[402163039,1768553779303,-2502.62526432,0.00041917,10]
[402163040,1768553779312,-713.21498233,0.00041917,10]
[402163041,1768553779322,-1173.01163388,0.00041917,10]
[402163042,1768553779332,-1013.62830104,0.00041917,10]
[402163043,1768553779342,-764.71975548,0.00041917,10]
[402163044,1768553779352,-761.52846275,0.00041917,10]
[402163045,1768553779361,-4884.38473843,0.00041917,10]
[402163046,1768553779373,-629.9497339,0.00041917,10]
[402163047,1768553779384,-704.6432626,0.00041917,10]
[402163048,1768553779393,-1262.86194599,0.00041917,10]
[402163049,1768553779403,-1064.49863478,0.00041917,10]
[402163050,1768553779412,-564.95255911,0.00041917,10]
[402163051,1768553779424,-1260.45623714,0.00041917,10]
[402163052,1768553779434,-1785.51500044,0.00041917,10]
[402163053,1768553779444,-662.38351345,0.00041917,10]
[402163054,1768553779455,-1338.29581632,0.00041917,10]
[402163055,1768553779466,-750.57223783,0.00041917,10]
[402163056,1768553779477,-897.68161406,0.00041917,10]
[402163057,1768553779486,-350.34889472,0.00041917,10]
[402163058,1768553779496,-591.65268682,0.00041917,10]
[402163059,1768553779505,-1018.50826426,0.00041917,10]
[402163060,1768553779514,-748.0288797,0.00041917,10]
[402163061,1768553779524,-764.06173135,0.00041917,10]
[402163062,1768553779533,-6302.27817497,0.00041917,10]
[402163063,1768553779542,-1736.88439914,0.00041917,10]
[402163064,1768553779551,-505.50984925,0.00041917,10]
[402163065,1768553779775,-1002.60357243,0.00041917,10]
[402163066,1768553779785,-667.71563879,0.00041917,10]
[402163067,1768553779794,-1307.88655439,0.00041917,10]
[402163068,1768553779803,-1041.81672279,0.00041917,10]
[402163069,1768553779812,-528.22592023,0.00041917,10]
[402163070,1768553779821,-1353.48,0.00041917,10]
[402163071,1768553779830,-1109.89625934,0.00041917,10]
[402163072,1768553779838,-848.96600492,0.00041917,10]
[402163073,1768553779848,-624.08388226,0.00041917,10]
[402163074,1768553779856,-737.38559514,0.00041917,10]
[402163075,1768553779865,-1021.83082778,0.00041917,10]
[402163076,1768553779874,-539.31835956,0.00041917,10]
[402163077,1768553779882,-935.87898522,0.00041917,10]
[402163078,1768553779891,-907.84067388,0.00041917,10]
[402163079,1768553779900,-535.63591402,0.00041917,10]
[402163080,1768553779909,-687.17508752,0.00041917,10]
[402163081,1768553779917,-1173.86083749,0.00041917,10]
[402163082,1768553779926,-600.0,0.00041918,120]
[402163083,1768553779935,-600.0,0.00041918,10]
[402163084,1768553779944,-150.0,0.0004196,30]
[402163085,1768553779953,-238.90934185,0.00041962,30]
[402163086,1768553779962,-200.06159783,0.00041962,30]
[402163087,1768553779971,-162.8115885,0.00041962,30]
[402163088,1768553779980,-214.36344643,0.00041962,30]
[402163089,1768553779989,-203.67457519,0.00041962,30]
[402163090,1768553779998,-303.49476013,0.00041962,30]
[402163091,1768553780007,-167.99625046,0.00041962,30]
[402163092,1768553780016,-25011775.441626,0.00041973,4]
[402163093,1768553780024,-150.0,0.00041981,30]
[402163094,1768553780034,-50000.0,0.00042,42]
[402163095,1768553780042,-5000000.0,0.00042,30]
[402163096,1768553780051,-5000000.0,0.00042,30]
[402163097,1768553780060,-5000000.0,0.00042,60]
[402163098,1768553780069,-1000.0,0.00042,120]
[402163099,1768553780078,-546.91126313,0.00042,30]
[402163100,1768553780088,-5000.0,0.00042,120]
[402163101,1768553780097,-10000.0,0.00042,30]
[402163102,1768553780107,-7306.44,0.00042,20]
[402163103,1768553780116,-1749.0,0.00042,75]
[402163104,1768553780125,-1931.2783629,0.00042,30]
[402163105,1768553780135,-999.0,0.00042,120]
[402163106,1768553780146,-500.0,0.00042,120]
[402163107,1768553780155,-329.91,0.00042,120]
[402163108,1768553780165,-407.61,0.00042,120]
[402163109,1768553780175,-500.0,0.00042,61]
[402163110,1768553780184,-300.0,0.00042,120]
[402163111,1768553780193,-300.0,0.00042,120]
[402163112,1768553780202,-300.0,0.00042,120]
[402163113,1768553780211,-2031.66447095,0.00042,30]
[402163114,1768553780220,-2886.82952139,0.00042,120]
[402163115,1768553780230,-2875.86314688,0.00042,120]
[402163116,1768553780239,-1000.0,0.00042,120]
[402163117,1768553780248,-500.0,0.00042,120]
[402163118,1768553780257,-500.0,0.00042,120]
[402163119,1768553780267,-500.0,0.00042,120]
[402163120,1768553780276,-500.0,0.00042,120]
[402163121,1768553780284,-238.90934185,0.00042019,30]
[402163122,1768553780294,-200.06159783,0.00042019,30]
[402163123,1768553780303,-162.8115885,0.00042019,30]
[402163124,1768553780312,-214.36344643,0.00042019,30]
[402163125,1768553780321,-203.67457519,0.00042019,30]
[402163126,1768553780330,-303.49476013,0.00042019,30]
[402163127,1768553780339,-167.99625046,0.00042019,30]
[402163128,1768553780348,-150.0,0.00042042,30]
[402163129,1768553780357,-18764.0,0.00042048,30]
[402163130,1768553780367,-150.0,0.00042053,30]
[402163131,1768553780377,-150.0,0.00042075,30]
[402163132,1768553780388,-238.90934185,0.00042077,30]
[402163133,1768553780396,-200.06159783,0.00042077,30]
[402163134,1768553780405,-162.8115885,0.00042077,30]
[402163135,1768553780415,-214.36344643,0.00042077,30]
[402163136,1768553780424,-203.67457519,0.00042077,30]
[402163137,1768553780433,-303.49476013,0.00042077,30]
[402163138,1768553780442,-167.99625046,0.00042077,30]
[402163139,1768553780451,-1395.66,0.00042082,120]
[402163140,1768553780460,-1395.66,0.00042082,120]
[402163141,1768553780469,-1395.66,0.00042082,120]
[402163142,1768553780479,-1395.66,0.00042082,120]
[402163143,1768553780488,-1395.66,0.00042082,120]
[402163144,1768553780497,-1395.66,0.00042082,120]
[402163145,1768553780507,-1395.66,0.00042082,120]
[402163146,1768553780516,-1395.66,0.00042082,120]
[402163147,1768553780525,-1395.66,0.00042082,120]
[402163148,1768553780534,-1395.66,0.00042082,120]
[402163149,1768553780542,-1395.66,0.00042082,120]
[402163150,1768553780551,-1395.66,0.00042082,120]
[402163151,1768553780560,-1395.66,0.00042082,120]
[402163152,1768553780569,-1395.66,0.00042082,120]
[402163153,1768553780581,-1395.66,0.00042082,120]
[402163154,1768553780592,-1395.66,0.00042082,120]
[402163155,1768553780603,-1395.66,0.00042082,120]
[402163156,1768553780612,-1395.66,0.00042082,120]
[402163157,1768553780621,-1395.66,0.00042082,120]
[402163158,1768553780630,-1395.66,0.00042082,120]
[402163159,1768553780639,-1395.66,0.00042082,120]
[402163160,1768553780648,-1395.66,0.00042082,120]
[402163161,1768553780657,-1395.66,0.00042082,120]
[402163162,1768553780666,-1395.79482441,0.00042082,120]
[402163163,1768553780675,-238.90934185,0.00042134,30]
[402163164,1768553780684,-200.06159783,0.00042134,30]
[402163165,1768553780693,-162.8115885,0.00042134,30]
[402163166,1768553780703,-214.36344643,0.00042134,30]
[402163167,1768553780713,-203.67457519,0.00042134,30]
[402163168,1768553780722,-303.49476013,0.00042134,30]
[402163169,1768553780732,-167.99625046,0.00042134,30]
[402163170,1768553780741,-2500.0,0.00042158,120]
[402163171,1768553780751,-2500.0,0.00042158,120]
[402163172,1768553780760,-2500.0,0.00042158,120]
[402163173,1768553780769,-2500.0,0.00042158,120]
[402163174,1768553780779,-2500.0,0.00042158,120]
[402163175,1768553780788,-2500.0,0.00042158,120]
[402163176,1768553780797,-2500.0,0.00042158,120]
[402163177,1768553780807,-2500.0,0.00042158,120]
[402163178,1768553780816,-231.327068,0.00042163,120]
[402163179,1768553780825,-3730.3549016,0.0004218,90]
[402163180,1768553780835,-151.0,0.0004219,30]
[402163181,1768553780845,-414.0,0.0004219,30]
[402163182,1768553780854,-500.0,0.0004219,30]
[402163183,1768553780863,-1239.0,0.0004219,30]
[402163184,1768553780872,-300.0,0.0004219,30]
[402163185,1768553780884,-2000.0,0.0004219,30]
[402163186,1768553780893,-151.0,0.0004219,30]
[402163187,1768553780902,-1000.0,0.0004219,30]
[402163188,1768553780911,-151.0,0.0004219,30]
[402163189,1768553780920,-3000.0,0.0004219,30]
[402163190,1768553780930,-151.0,0.0004219,30]
[402163191,1768553780940,-151.0,0.0004219,30]
[402163192,1768553780949,-250.0,0.0004219,30]
[402163193,1768553780959,-6888.0,0.0004219,30]
[402163194,1768553780968,-600.0,0.0004219,30]
[402163195,1768553780977,-1000.0,0.0004219,30]
[402163196,1768553780987,-151.0,0.0004219,30]
[402163197,1768553780996,-500.0,0.0004219,30]
[402163198,1768553781005,-500.0,0.0004219,30]
[402163199,1768553781014,-1500.0,0.0004219,30]
[402163200,1768553781023,-250.0,0.0004219,30]
[402163201,1768553781032,-500.0,0.0004219,30]
[402163202,1768553781041,-250.0,0.0004219,30]
[402163203,1768553781050,-151.0,0.0004219,30]
[402163204,1768553781059,-500.0,0.0004219,30]
[402163205,1768553781069,-500.0,0.0004219,30]
[402163206,1768553781078,-500.0,0.0004219,30]
[402163207,1768553781087,-151.0,0.0004219,30]
[402163208,1768553781097,-5826.24315299,0.0004219,30]
[402163209,1768553781107,-500.0,0.0004219,30]
[402163210,1768553781116,-520.0,0.0004219,30]
[402163211,1768553781126,-238.90934185,0.00042191,30]
[402163212,1768553781136,-200.06159783,0.00042191,30]
[402163213,1768553781146,-162.8115885,0.00042191,30]
[402163214,1768553781156,-197.03594541,0.00042191,30]
[402163215,1768553781165,-214.36344643,0.00042191,30]
[402163216,1768553781174,-220.07147028,0.00042191,30]
[402163217,1768553781182,-156.76002211,0.00042191,30]
[402163218,1768553781191,-203.67457519,0.00042191,30]
[402163219,1768553781200,-303.49476013,0.00042191,30]
[402163220,1768553781210,-150.48546939,0.00042191,30]
[402163221,1768553781219,-181.87629411,0.00042191,30]
[402163222,1768553781228,-184.53778394,0.00042191,30]
[402163223,1768553781237,-150.0,0.00042191,30]
[402163224,1768553781246,-166.46262283,0.00042191,30]
[402163225,1768553781255,-299.96807147,0.00042191,30]
[402163226,1768553781264,-194.37042065,0.00042191,30]
[402163227,1768553781273,-167.99625046,0.00042191,30]
[402163228,1768553781284,-256.13587577,0.00042191,30]
[402163229,1768553781293,-1999.0,0.00042191,120]
[402163230,1768553781303,-151.1609,0.000422,2]
[402163231,1768553781312,-1509.67987779,0.000422,120]
[402163232,1768553781321,-151.0,0.000422,120]
[402163233,1768553781329,-150.0,0.00042223,120]
[402163234,1768553781339,-150.0,0.00042268,120]
[402163235,1768553781349,-150.0,0.00042281,120]
[402163236,1768553781364,-705.06705296,0.000423,120]
[402163237,1768553781385,-472.0,0.00042313,120]
[402163238,1768553781395,-1000.0,0.00042355,30]
[402163239,1768553781405,-150.0,0.00042465,120]
[402163240,1768553781415,-400.0,0.00042466,10]
[402163241,1768553781424,-1700.0,0.00042466,60]
[402163242,1768553781434,-500.0,0.00042466,60]
[402163243,1768553781445,-18764.0,0.00042477,30]
[402163244,1768553781455,-1719.77530876,0.000425,60]
[402163245,1768553781464,-35000.0,0.000425,2]
[402163246,1768553781475,-20000.0,0.000425,2]
[402163247,1768553781486,-209.0,0.000425,2]
[402163248,1768553781496,-152.0,0.000425,120]
[402163249,1768553781505,-349.47977626,0.000425,30]
[402163250,1768553781516,-300.0,0.000425,120]
[402163251,1768553781537,-5000.0,0.000425,120]
[402163252,1768553781557,-150.0,0.00042574,120]
[402163253,1768553781576,-761.3,0.000426,120]
[402163254,1768553781590,-3213.02,0.000426,120]
[402163255,1768553781601,-1000.0,0.00042629,30]
[402163256,1768553781615,-500.0,0.0004263,90]
[402163258,1768553781627,-152.92347226,0.00042639,120]
[402163259,1768553781640,-150.76201463,0.000427,30]
[402163260,1768553781652,-900.0,0.0004274,10]
[402163261,1768553781661,-700.0,0.0004274,60]
[402163262,1768553781672,-3895.98,0.0004275,120]
[402163263,1768553781682,-150.0,0.000428,120]
[402163264,1768553781693,-150.0,0.000428,60]
[402163265,1768553781703,-150.0,0.000428,120]
[402163266,1768553781714,-150.0,0.000428,120]
[402163267,1768553781725,-150.0,0.000428,120]
[402163268,1768553781735,-1369.24,0.000428,120]
[402163269,1768553781747,-1448.59653649,0.0004282,2]
[402163270,1768553781757,-2361242.9275,0.00042835,30]
[402163271,1768553781768,-2000.0,0.000429,60]
[402163272,1768553781778,-5286.41097767,0.000429,120]
[402163273,1768553781787,-1929.40816155,0.000429,120]
[402163274,1768553781800,-2165.06,0.000429,15]
[402163275,1768553781810,-151.0,0.000429,120]
[402163276,1768553781822,-1000.0,0.00042903,30]
[402163277,1768553781833,-18764.0,0.00042906,30]
[402163278,1768553781843,-275.36016621,0.00042933,120]
[402163279,1768553781853,-230.21005251,0.00042933,120]
[402163280,1768553781864,-57258.6532,0.00042945,7]
[402163281,1768553781873,-209.0,0.0004295,30]
[402163282,1768553781883,-150.0,0.00042958,120]
[402163283,1768553781892,-693.98745949,0.0004299,120]
[402163284,1768553781901,-539.0,0.00042996,19]
[402163285,1768553781910,-84654.20661802,0.00042998,30]
[402163286,1768553781920,-50000.0,0.00043,43]
[402163287,1768553781930,-150.0,0.00043,120]
[402163288,1768553781939,-1000.0,0.00043,120]
[402163289,1768553781948,-1000.0,0.00043,120]
[402163290,1768553781957,-150.0,0.00043,120]
[402163291,1768553781966,-1476.7632766,0.00043,120]
[402163292,1768553781976,-1000.0,0.00043,120]
[402163293,1768553781985,-1000.0,0.00043,120]
[402163294,1768553781994,-500.0,0.00043,65]
[402163295,1768553782003,-2000.0,0.00043,120]
[402163296,1768553782012,-63639.65643998,0.00043,120]
[402163297,1768553782021,-1000.0,0.00043,120]
[402163298,1768553782030,-457.0,0.00043,60]
[402163299,1768553782039,-2500.0,0.00043,30]
[402163300,1768553782049,-224.0,0.00043,120]
[402163301,1768553782058,-1500.0,0.00043,60]
[402163302,1768553782068,-10000.0,0.00043,60]
[402163303,1768553782078,-502.3183611,0.00043,30]
[402163304,1768553782091,-500.0,0.00043,120]
[402163305,1768553782101,-3955.0,0.00043,120]
[402163306,1768553782111,-300.0,0.00043,120]
[402163307,1768553782121,-300.0,0.00043,120]
[402163308,1768553782131,-212.57841271,0.00043,120]
[402163309,1768553782140,-240.95,0.00043,14]
[402163310,1768553782150,-1908.9211032,0.00043,30]
[402163311,1768553782159,-500.0,0.00043,120]
[402163312,1768553782170,-50000.0,0.00043035,40]
[402163313,1768553782180,-50000.0,0.00043035,41]
[402163314,1768553782190,-50000.0,0.00043035,42]
[402163315,1768553782200,-50000.0,0.00043035,43]
[402163316,1768553782209,-50000.0,0.00043035,44]
[402163317,1768553782218,-150.0,0.00043038,120]
[402163318,1768553782228,-50000.0,0.00043044,45]
[402163319,1768553782238,-50000.0,0.00043044,46]
[402163320,1768553782247,-50000.0,0.00043044,47]
[402163321,1768553782257,-50000.0,0.00043044,48]
[402163322,1768553782267,-50000.0,0.00043044,49]
[402163323,1768553782276,-50000.0,0.00043044,50]
[402163324,1768553782285,-50000.0,0.00043044,51]
[402163325,1768553782295,-50000.0,0.00043044,52]
[402163326,1768553782305,-50000.0,0.00043044,53]
[402163327,1768553782314,-50000.0,0.00043044,54]
[402163328,1768553782323,-19726727.98740281,0.00043045,7]
[402163329,1768553783175,-160179.69976,0.0004306,7]
[402163387,1768554266224,160.66,0.00013068,2]
[402163401,1768554435185,-155.31580728,0.00015654,2]
[402163402,1768554436090,-412.87130372,0.00015654,2]
[402163403,1768554436110,-434.8495228,0.00015674,2]
[402163404,1768554436132,-195.0,0.00015693,2]
[402163405,1768554436155,-300.0,0.00015693,2]
[402163406,1768554436175,-250.0,0.00015733,2]
[402163407,1768554436416,-500.0,0.00015773,2]
[402163408,1768554436439,-40.37517831,0.00015917,2]
[402163429,1768554561103,-259.62482169,0.00015917,2]
[402163430,1768554561123,-1321.42967819,0.00016107,2]
[402163431,1768554561147,-372.81676276,0.00016107,2]
[402163517,1768554632111,-1199.16049217,0.000163,2]
[402163519,1768554632165,-544.02,0.000163,2]
[402163520,1768554632176,-559.2491887,0.000163,2]
[402163521,1768554632224,-891.55644369,0.000163,2]
[402163522,1768554632235,-279.59743007,0.00016321,2]
[402163523,1768554632247,-437.436765,0.00016321,2]
[402163524,1768554632306,-91.69074588,0.00016321,2]
[402163525,1768554632317,-191.27505905,0.00016321,2]
[402163526,1768554632327,-239.30494094,0.00016328,2]
[402163527,1768554632338,-10.69505906,0.00016328,2]
[402163528,1768554632347,-160.66,0.00016335,2]
[402163529,1768554632357,-274.30176225,0.00016372,2]
[402163530,1768554632366,-274.30176225,0.00016377,2]
[402163531,1768554632375,-274.30176225,0.00016381,2]
[402163532,1768554632385,-1000.0,0.00016472,2]
[402163533,1768554632394,-1200.0,0.00016472,2]
[402163534,1768554632403,-300.0,0.00016472,2]
[402163535,1768554632413,-550.0,0.00016472,2]
[402163536,1768554632422,-53159.83,0.00016473,2]
[402163537,1768554632432,-580.93,0.00016481,2]
[402163538,1768554632441,-999.0,0.00016505,3]
[402163539,1768554632450,-1000.0,0.00016574,2]
[402163540,1768554632460,-983.69326785,0.00016868,2]
[402163541,1768554632469,-488.11375467,0.00017219,2]
[402163542,1768554632479,-300.0,0.00017219,2]
[402163543,1768554632488,-300.0,0.00017219,2]
[402163544,1768554632497,-816.0,0.00017318,2]
[402163545,1768554632506,-816.0,0.00017359,2]
[402163546,1768554632515,-816.0,0.00017364,2]
[402163547,1768554632523,-816.0,0.00017383,2]
[402163548,1768554632533,-816.0,0.0001744,2]
[402163549,1768554632542,-2000.0,0.000175,2]
[402163550,1768554632552,-250.0,0.00017509,2]
[402163551,1768554632561,-816.0,0.00017556,2]
[402163552,1768554632570,-816.0,0.0001758,2]
[402163553,1768554632579,-1977.8039,0.000176,2]
[402163554,1768554632588,-7622.4966,0.000176,2]
[402163555,1768554632597,-1000.0,0.000176,2]
[402163556,1768554632606,-2500.0,0.000176,2]
[402163557,1768554632615,-158.30651085,0.00017687,2]
[402163558,1768554632625,-435.68881563,0.00017687,2]
[402163559,1768554632634,-352.71227501,0.00017696,2]
[402163560,1768554632643,-187.29396545,0.00017696,2]
[402163561,1768554632652,-500.0,0.00017696,2]
[402163562,1768554632661,-500.0,0.00017696,2]
[402163563,1768554632670,-500.0,0.00017696,2]
[402163564,1768554632679,-500.0,0.00017696,2]
[402163565,1768554632688,-500.0,0.00017696,2]
[402163566,1768554632697,-500.0,0.00017696,2]
[402163567,1768554632706,-500.0,0.00017696,2]
[402163568,1768554632715,-500.0,0.00017696,2]
[402163569,1768554632724,-500.0,0.00017696,2]
[402163570,1768554632733,-500.0,0.00017696,2]
[402163571,1768554632742,-500.0,0.00017696,2]
[402163572,1768554632751,-500.0,0.00017696,2]
[402163573,1768554632760,-500.0,0.00017696,2]
[402163574,1768554632770,-500.0,0.00017696,2]
[402163575,1768554632779,-500.0,0.00017696,2]
[402163576,1768554632788,-500.0,0.00017696,2]
[402163577,1768554632797,-500.0,0.00017696,2]
[402163578,1768554632806,-500.0,0.00017696,2]
[402163579,1768554632815,-500.0,0.00017696,2]
[402163580,1768554632824,-500.0,0.00017696,2]
[402163581,1768554632834,-500.0,0.00017696,2]
[402163582,1768554632843,-500.0,0.00017696,2]
[402163583,1768554632852,-500.0,0.00017696,2]
[402163584,1768554632861,-500.0,0.00017696,2]
[402163585,1768554632870,-500.0,0.00017696,2]
[402163586,1768554632879,-500.0,0.00017696,2]
[402163587,1768554632891,-500.0,0.00017696,2]
[402163588,1768554632901,-500.0,0.00017696,2]
[402163589,1768554632910,-500.0,0.00017696,2]
[402163590,1768554632919,-500.0,0.00017696,2]
[402163591,1768554632929,-500.0,0.00017696,2]
[402163592,1768554632938,-500.0,0.00017696,2]
[402163593,1768554632947,-500.0,0.00017696,2]
[402163594,1768554632956,-500.0,0.00017696,2]
[402163595,1768554632966,-500.0,0.00017696,2]
[402163596,1768554632975,-500.0,0.00017696,2]
[402163597,1768554632984,-500.0,0.00017696,2]
[402163598,1768554632994,-500.0,0.00017696,2]
[402163599,1768554633003,-500.0,0.00017696,2]
[402163600,1768554633013,-500.0,0.00017696,2]
[402163601,1768554633022,-500.0,0.00017696,2]
[402163602,1768554633031,-500.0,0.00017696,2]
[402163603,1768554633040,-500.0,0.00017696,2]
[402163604,1768554633049,-500.0,0.00017696,2]
[402163605,1768554633059,-500.0,0.00017696,2]
[402163606,1768554633068,-500.0,0.00017696,2]
[402163607,1768554633077,-500.0,0.00017696,2]
[402163608,1768554633087,-500.0,0.00017696,2]
[402163609,1768554633096,-500.0,0.00017696,2]
[402163610,1768554633105,-500.0,0.00017696,2]
[402163612,1768554633281,-500.0,0.00017696,2]
[402163613,1768554633343,-500.0,0.00017696,2]
[402163614,1768554633353,-500.0,0.00017696,2]
[402163615,1768554633363,-500.0,0.00017696,2]
[402163616,1768554633372,-500.0,0.00017696,2]
[402163617,1768554633382,-500.0,0.00017696,2]
[402163618,1768554633391,-500.0,0.00017696,2]
[402163619,1768554633401,-500.0,0.00017696,2]
[402163620,1768554633410,-500.0,0.00017696,2]
[402163621,1768554633420,-437.97546903,0.00017696,2]
[402163622,1768554633429,-500.0,0.00017696,2]
[402163623,1768554633438,-500.0,0.00017696,2]
[402163624,1768554633447,-500.0,0.00017696,2]
[402163625,1768554633457,-500.0,0.00017696,2]
[402163626,1768554633466,-500.0,0.00017696,2]
[402163627,1768554633476,-500.0,0.00017696,2]
[402163628,1768554633484,-500.0,0.00017696,2]
[402163629,1768554633494,-500.0,0.00017696,2]
[402163630,1768554633503,-500.0,0.00017696,2]
[402163631,1768554633512,-500.0,0.00017696,2]
[402163632,1768554633522,-500.0,0.00017696,2]
[402163633,1768554633531,-500.0,0.00017696,2]
[402163634,1768554633540,-500.0,0.00017696,2]
[402163635,1768554633550,-500.0,0.00017696,2]
[402163636,1768554633560,-500.0,0.00017696,2]
[402163637,1768554633568,-150.0,0.00017699,2]
[402163638,1768554633578,-381.13587757,0.00017699,2]
[402163639,1768554633587,-500.0,0.00017699,2]
[402163640,1768554633596,-197.60297119,0.00017699,2]
[402163641,1768554633606,-427.25906542,0.00017699,2]
[402163642,1768554633615,-500.0,0.00017699,2]
[402163643,1768554633624,-177.66584414,0.00017699,2]
[402163644,1768554633635,-500.0,0.00017699,2]
[402163645,1768554633644,-500.0,0.00017699,2]
[402163646,1768554633653,-479.3306556,0.00017699,2]
[402163647,1768554633663,-500.0,0.00017699,2]
[402163648,1768554633673,-500.0,0.00017699,2]
[402163649,1768554633683,-277.47505992,0.00017699,2]
[402163650,1768554633692,-500.0,0.00017699,2]
[402163651,1768554633701,-500.0,0.00017699,2]
[402163652,1768554633710,-500.0,0.00017699,2]
[402163653,1768554633720,-451.33698844,0.00017787,2]
[402163654,1768554633729,-816.0,0.00017794,2]
[402163655,1768554633738,-168.0,0.00017794,2]
[402163656,1768554633747,-816.0,0.00017804,2]
[402163657,1768554633759,-2000.0,0.00017928,2]
[402163658,1768554633768,-373.09875792,0.00017953,2]
[402163659,1768554633778,-275.27861321,0.00017953,2]
[402163660,1768554633788,-250.0,0.00017953,2]
[402163661,1768554633798,-418.50928406,0.00017953,2]
[402163662,1768554633807,-155.694,0.00017999,2]
[402163663,1768554633817,-4234.2993835,0.00018,2]
[402163664,1768554633826,-1200.0,0.00018,2]
[402163665,1768554633835,-420.0,0.00018,2]
[402163666,1768554633844,-816.0,0.00018038,2]
[402163667,1768554633853,-816.0,0.00018152,2]